fUSD/lending_fUSD_20250201
["ID","MTS","AMOUNT","RATE_DAILY","PERIOD"]
[351202188,1738414232128,-529.52,0.00016573,2]
[351202190,1738414232137,-500.0,0.00016573,2]
[351202192,1738414232146,-592.58,0.00016573,2]
[351202193,1738414232155,-468.01364694,0.00016573,2]
[351202195,1738414232164,-500.0,0.00016573,2]
[351202197,1738414232173,-500.0,0.00016573,2]
[351202198,1738414232182,-500.0,0.00016573,2]
[351202200,1738414232191,-500.0,0.00016573,2]
[351202202,1738414232201,-500.0,0.00016573,2]
[351202204,1738414232210,-500.0,0.00016573,2]
[351202205,1738414232219,-9296.63346117,0.00016574,2]
[351202208,1738414232236,-471.11097734,0.00016574,2]
[351202307,1738414237683,-177.14,0.00015886,2]
[351202308,1738414237692,-293.11,0.00016574,2]
[351202309,1738414237703,-44131.72903024,0.00016574,2]
[351202310,1738414237713,-971.2548453,0.00016603,2]
[351202311,1738414237722,-150.0,0.00016665,2]
[351202312,1738414237731,-1302.7733,0.00016667,2]
[351202313,1738414237740,-971.2548453,0.00016685,2]
[351202314,1738414237749,-330.74,0.00016685,2]
[351202315,1738414237759,-575.64557403,0.0001671,2]
[351202316,1738414237768,-500.0,0.0001671,2]
[351202317,1738414237778,-500.0,0.0001671,2]
[351202318,1738414237789,-500.0,0.0001671,2]
[351202319,1738414237799,-500.0,0.0001671,2]
[351202320,1738414237810,-500.0,0.0001671,2]
[351202321,1738414237820,-500.0,0.0001671,2]
[351202322,1738414237829,-500.0,0.0001671,2]
[351202323,1738414237841,-500.0,0.0001671,2]
[351202324,1738414237850,-500.0,0.0001671,2]
[351202325,1738414237859,-500.0,0.0001671,2]
[351202326,1738414237868,-370.79571779,0.0001671,2]
[351202330,1738414237914,-129.20428221,0.0001671,2]
[351202332,1738414237923,-500.0,0.0001671,2]
[351202334,1738414237933,-29.27415138,0.0001671,2]
[351202448,1738414239555,-155.6864108,0.0001671,2]
[351202449,1738414239568,-300.0,0.0001671,2]
[351202450,1738414239578,-500.0,0.0001671,2]
[351202451,1738414239588,-65.4085892,0.0001671,2]
[351202452,1738414239599,-434.5914108,0.0001671,2]
[351202453,1738414239609,-48.62654777,0.0001671,2]
[351202454,1738414239621,-451.37345223,0.0001671,2]
[351202455,1738414239630,-1.0822699,0.0001671,2]
[351202456,1738414239897,-498.9177301,0.0001671,2]
[351202457,1738414239907,-263.9222699,0.0001671,2]
[351202458,1738414239919,-236.0777301,0.0001671,2]
[351202459,1738414239929,-386.6022699,0.0001671,2]
[351202471,1738414242670,-113.3977301,0.0001671,2]
[351202472,1738414242680,-500.0,0.0001671,2]
[351202473,1738414242689,-500.0,0.0001671,2]
[351202474,1738414242699,-2083.33,0.0001671,2]
[351202475,1738414242709,-500.0,0.0001671,2]
[351202476,1738414242718,-500.0,0.0001671,2]
[351202477,1738414242728,-500.0,0.0001671,2]
[351202478,1738414242738,-222.56466837,0.0001671,2]
[351202479,1738414242750,-500.0,0.0001671,2]
[351202480,1738414242762,-500.0,0.0001671,2]
[351202481,1738414242774,-500.0,0.0001671,2]
[351202482,1738414242784,-500.0,0.0001671,2]
[351202483,1738414242796,-500.0,0.0001671,2]
[351202484,1738414242806,-500.0,0.0001671,2]
[351202485,1738414242817,-500.0,0.0001671,2]
[351202486,1738414242826,-500.0,0.0001671,2]
[351202487,1738414242837,-500.0,0.0001671,2]
[351202488,1738414242846,-500.0,0.0001671,2]
[351202489,1738414242855,-500.0,0.0001671,2]
[351202490,1738414242864,-500.0,0.0001671,2]
[351202491,1738414242873,-568.09,0.0001671,2]
[351202492,1738414242883,-500.0,0.0001671,2]
[351202493,1738414242891,-384.45536371,0.0001671,2]
[351202494,1738414242900,-529.52,0.0001671,2]
[351202495,1738414242909,-500.0,0.0001671,2]
[351202496,1738414242918,-500.0,0.0001671,2]
[351202497,1738414242927,-500.0,0.0001671,2]
[351202498,1738414242937,-592.58,0.0001671,2]
[351202499,1738414242946,-500.0,0.0001671,2]
[351202500,1738414242955,-500.0,0.0001671,2]
[351202501,1738414242965,-500.0,0.0001671,2]
[351202502,1738414242974,-500.0,0.0001671,2]
[351202503,1738414242983,-500.0,0.0001671,2]
[351202504,1738414242992,-500.0,0.0001671,2]
[351202505,1738414243001,-500.0,0.0001671,2]
[351202506,1738414243010,-500.0,0.0001671,2]
[351202507,1738414243020,-519.18,0.0001671,2]
[351202508,1738414243029,-500.0,0.0001671,2]
[351202509,1738414243041,-631.95,0.0001671,2]
[351202510,1738414243054,-500.0,0.0001671,2]
[351202512,1738414243068,-500.0,0.0001671,2]
[351202515,1738414243080,-531.72,0.0001671,2]
[351202516,1738414243091,-500.0,0.0001671,2]
[351202517,1738414243102,-518.96,0.0001671,2]
[351202518,1738414243113,-500.0,0.0001671,2]
[351202519,1738414243125,-500.0,0.0001671,2]
[351202520,1738414243137,-500.0,0.0001671,2]
[351202521,1738414243149,-587.41,0.0001671,2]
[351202522,1738414243160,-500.0,0.0001671,2]
[351202523,1738414243173,-500.0,0.0001671,2]
[351202524,1738414243186,-500.0,0.0001671,2]
[351202525,1738414243197,-500.0,0.0001671,2]
[351202526,1738414243208,-500.0,0.0001671,2]
[351202528,1738414243219,-500.0,0.0001671,2]
[351202530,1738414243230,-1410.17,0.0001671,2]
[351202532,1738414243240,-500.0,0.0001671,2]
[351202534,1738414243252,-500.0,0.0001671,2]
[351202537,1738414243264,-615.89,0.0001671,2]
[351202539,1738414243276,-500.0,0.0001671,2]
[351202541,1738414243287,-500.0,0.0001671,2]
[351202543,1738414243299,-500.0,0.0001671,2]
[351202546,1738414243311,-500.0,0.0001671,2]
[351202548,1738414243325,-585.14,0.0001671,2]
[351202550,1738414243337,-500.0,0.0001671,2]
[351202552,1738414243349,-500.0,0.0001671,2]
[351202555,1738414243360,-500.0,0.0001671,2]
[351202557,1738414243373,-500.0,0.0001671,2]
[351202559,1738414243384,-500.0,0.0001671,2]
[351202561,1738414243396,-500.0,0.0001671,2]
[351202562,1738414243407,-500.0,0.0001671,2]
[351202563,1738414243420,-500.0,0.0001671,2]
[351202564,1738414243432,-500.0,0.0001671,2]
[351202565,1738414243444,-654.83,0.0001671,2]
[351202566,1738414243456,-500.0,0.0001671,2]
[351202567,1738414243467,-500.0,0.0001671,2]
[351202568,1738414243479,-812.23,0.0001671,2]
[351202569,1738414243490,-500.0,0.0001671,2]
[351202570,1738414243500,-500.0,0.0001671,2]
[351202571,1738414243511,-809.96,0.0001671,2]
[351202572,1738414243520,-500.0,0.0001671,2]
[351202573,1738414243531,-500.0,0.0001671,2]
[351202574,1738414243542,-1770.87,0.0001671,2]
[351202575,1738414243554,-4040.62,0.0001671,2]
[351202576,1738414243567,-500.0,0.0001671,2]
[351202577,1738414243579,-500.0,0.0001671,2]
[351202578,1738414243588,-500.0,0.0001671,2]
[351202579,1738414243597,-811.57,0.0001671,2]
[351202580,1738414243606,-1103.62,0.0001671,2]
[351202581,1738414243617,-500.0,0.0001671,2]
[351202582,1738414243627,-582.52,0.0001671,2]
[351202583,1738414243640,-500.0,0.0001671,2]
[351202584,1738414243652,-1161.81,0.0001671,2]
[351202585,1738414243662,-500.0,0.0001671,2]
[351202586,1738414243673,-338.89,0.00016712,7]
[351202587,1738414243683,-500.0,0.00016745,2]
[351202588,1738414243693,-1000.0,0.00016745,2]
[351202589,1738414243703,-5000.0,0.00016747,2]
[351202590,1738414243716,-971.2548453,0.00016767,2]
[351202591,1738414243726,-396.91942086,0.0001678,2]
[351202592,1738414243737,-300.0,0.000168,2]
[351202593,1738414243750,-971.2548453,0.00016822,2]
[351202594,1738414243761,-500.0,0.00016845,2]
[351202595,1738414243772,-310.8351313,0.00016845,2]
[351202596,1738414243782,-500.0,0.00016845,2]
[351202597,1738414243795,-500.0,0.00016845,2]
[351202598,1738414243815,-1252.48,0.00016845,2]
[351202599,1738414243826,-500.0,0.00016845,2]
[351202600,1738414243836,-500.0,0.00016845,2]
[351202601,1738414243847,-500.0,0.00016845,2]
[351202602,1738414243858,-500.0,0.00016845,2]
[351202603,1738414243868,-749.7,0.00016845,2]
[351202604,1738414243878,-164.581122,0.00016845,2]
[351202605,1738414243890,-578.93,0.00016845,2]
[351202606,1738414243906,-200.0,0.00016845,2]
[351202607,1738414243916,-656.51,0.00016845,2]
[351202608,1738414243928,-988.98,0.00016845,2]
[351202609,1738414243939,-168.207267,0.00016845,2]
[351202610,1738414243950,-500.0,0.00016845,2]
[351202611,1738414243960,-500.0,0.00016845,2]
[351202612,1738414243971,-1071.23,0.00016845,2]
[351202613,1738414243982,-826.27,0.00016845,2]
[351202614,1738414243993,-500.0,0.00016845,2]
[351202615,1738414244003,-500.0,0.00016845,2]
[351202616,1738414244014,-500.0,0.00016845,2]
[351202617,1738414244025,-1105.53,0.00016845,2]
[351202618,1738414244035,-985.42,0.00016845,2]
[351202619,1738414244046,-1286.53,0.00016845,2]
[351202620,1738414244056,-500.0,0.00016845,2]
[351202621,1738414244067,-769.76,0.00016845,2]
[351202622,1738414244078,-500.0,0.00016845,2]
[351202623,1738414244089,-679.59,0.00016845,2]
[351202624,1738414244099,-500.0,0.00016845,2]
[351202625,1738414244110,-500.0,0.00016845,2]
[351202626,1738414244120,-682.95,0.00016845,2]
[351202627,1738414244131,-1432.77,0.00016845,2]
[351202628,1738414244142,-559.85,0.00016845,2]
[351202629,1738414244152,-753.27,0.00016845,2]
[351202630,1738414244163,-735.42,0.00016845,2]
[351202631,1738414244174,-500.0,0.00016845,2]
[351202632,1738414244184,-1525.22,0.00016845,2]
[351202633,1738414244195,-780.63,0.00016845,2]
[351202634,1738414244205,-610.2641425,0.00016845,2]
[351202635,1738414244216,-1246.71,0.00016845,2]
[351202636,1738414244227,-500.0,0.00016845,2]
[351202637,1738414244237,-665.37,0.00016845,2]
[351202638,1738414244248,-500.0,0.00016845,2]
[351202639,1738414244260,-500.0,0.00016845,2]
[351202640,1738414244270,-500.0,0.00016845,2]
[351202641,1738414244281,-500.0,0.00016845,2]
[351202642,1738414244292,-1229.03,0.00016845,2]
[351202643,1738414244303,-500.0,0.00016845,2]
[351202644,1738414244314,-500.0,0.00016845,2]
[351202645,1738414244324,-500.0,0.00016845,2]
[351202646,1738414244335,-829.47,0.00016845,2]
[351202647,1738414244345,-801.88,0.00016845,2]
[351202648,1738414244356,-555.28,0.00016845,2]
[351202649,1738414244366,-403.90370081,0.00016845,2]
[351202650,1738414244377,-768.04,0.00016845,2]
[351202651,1738414244388,-1272.01,0.00016845,2]
[351202652,1738414244399,-500.0,0.00016845,2]
[351202653,1738414244411,-745.04,0.00016845,2]
[351202654,1738414244422,-2016.66,0.00016845,2]
[351202655,1738414244433,-1450.36,0.00016845,2]
[351202656,1738414244445,-1402.9,0.00016845,2]
[351202657,1738414244457,-500.0,0.00016845,2]
[351202658,1738414244468,-514.89,0.00016845,2]
[351202659,1738414244479,-500.0,0.00016845,2]
[351202660,1738414244492,-500.0,0.00016845,2]
[351202661,1738414244504,-500.0,0.00016845,2]
[351202662,1738414244516,-1333.7,0.00016845,2]
[351202663,1738414244526,-500.0,0.00016845,2]
[351202664,1738414244538,-2065.25,0.00016845,2]
[351202665,1738414244549,-500.0,0.00016845,2]
[351202666,1738414244561,-1091.38,0.00016845,2]
[351202667,1738414244573,-500.0,0.00016845,2]
[351202668,1738414244584,-755.19,0.00016845,2]
[351202669,1738414244596,-342.65380805,0.00016845,2]
[351202670,1738414244607,-2286.44,0.00016845,2]
[351202671,1738414244618,-1034.34,0.00016845,2]
[351202672,1738414244629,-903.42,0.00016845,2]
[351202673,1738414244640,-500.0,0.00016845,2]
[351202674,1738414244652,-538.13,0.00016845,2]
[351202675,1738414244665,-1508.69,0.00016845,2]
[351202676,1738414244677,-1990.89,0.00016845,2]
[351202677,1738414244689,-500.0,0.00016845,2]
[351202678,1738414244702,-500.0,0.00016845,2]
[351202679,1738414244714,-500.0,0.00016845,2]
[351202680,1738414244726,-1124.6,0.00016845,2]
[351202681,1738414244737,-500.0,0.00016845,2]
[351202682,1738414244749,-500.0,0.00016845,2]
[351202683,1738414244758,-696.38,0.00016845,2]
[351202684,1738414244767,-1232.82,0.00016845,2]
[351202685,1738414244776,-500.0,0.00016845,2]
[351202686,1738414244785,-787.66,0.00016846,2]
[351202687,1738414244796,-852.93,0.00016846,2]
[351202688,1738414244805,-1000.0,0.00016846,2]
[351202689,1738414244815,-756.56,0.00016846,2]
[351202690,1738414244824,-500.0,0.00016846,2]
[351202691,1738414244833,-1308.21,0.00016846,2]
[351202692,1738414244845,-859.14,0.00016846,2]
[351202693,1738414244854,-500.0,0.00016847,2]
[351202694,1738414244864,-500.0,0.00016847,2]
[351202695,1738414244873,-500.0,0.00016847,2]
[351202696,1738414244884,-500.0,0.00016847,2]
[351202697,1738414245137,-500.0,0.00016847,2]
[351202698,1738414245158,-500.0,0.00016847,2]
[351202699,1738414245169,-500.0,0.00016847,2]
[351202700,1738414245178,-500.0,0.00016847,2]
[351202701,1738414245191,-300.0,0.00016847,2]
[351202702,1738414245200,-500.0,0.00016847,2]
[351202703,1738414245209,-378.13202577,0.00016847,2]
[351202704,1738414245219,-500.0,0.00016847,2]
[351202705,1738414245228,-500.0,0.00016847,2]
[351202706,1738414245238,-500.0,0.00016847,2]
[351202707,1738414245248,-500.0,0.00016847,2]
[351202708,1738414245257,-2083.33,0.00016847,2]
[351202709,1738414245267,-500.0,0.00016847,2]
[351202710,1738414245276,-500.0,0.00016847,2]
[351202711,1738414245286,-500.0,0.00016847,2]
[351202712,1738414245295,-500.0,0.00016847,2]
[351202713,1738414245305,-500.0,0.00016847,2]
[351202714,1738414245314,-500.0,0.00016847,2]
[351202715,1738414245323,-500.0,0.00016847,2]
[351202716,1738414245332,-500.0,0.00016847,2]
[351202717,1738414245341,-500.0,0.00016847,2]
[351202718,1738414245351,-500.0,0.00016847,2]
[351202719,1738414245361,-500.0,0.00016847,2]
[351202720,1738414245371,-500.0,0.00016847,2]
[351202721,1738414245381,-568.09,0.00016847,2]
[351202722,1738414245391,-500.0,0.00016847,2]
[351202723,1738414245400,-529.52,0.00016847,2]
[351202724,1738414245410,-500.0,0.00016847,2]
[351202725,1738414245419,-500.0,0.00016847,2]
[351202726,1738414245428,-592.58,0.00016847,2]
[351202727,1738414245438,-500.0,0.00016847,2]
[351202728,1738414245448,-500.0,0.00016847,2]
[351202729,1738414245458,-500.0,0.00016847,2]
[351202730,1738414245468,-500.0,0.00016847,2]
[351202731,1738414245478,-500.0,0.00016847,2]
[351202732,1738414245489,-500.0,0.00016847,2]
[351202733,1738414245499,-500.0,0.00016847,2]
[351202734,1738414245508,-500.0,0.00016847,2]
[351202735,1738414245518,-519.18,0.00016847,2]
[351202736,1738414245528,-500.0,0.00016847,2]
[351202737,1738414245538,-500.0,0.00016847,2]
[351202738,1738414245548,-500.0,0.00016847,2]
[351202739,1738414245557,-531.72,0.00016847,2]
[351202740,1738414245567,-500.0,0.00016847,2]
[351202741,1738414245577,-518.96,0.00016847,2]
[351202742,1738414245587,-500.0,0.00016847,2]
[351202743,1738414245596,-500.0,0.00016847,2]
[351202744,1738414245605,-500.0,0.00016847,2]
[351202745,1738414245615,-587.41,0.00016847,2]
[351202746,1738414245624,-500.0,0.00016847,2]
[351202747,1738414245634,-500.0,0.00016847,2]
[351202748,1738414245644,-500.0,0.00016847,2]
[351202749,1738414245654,-500.0,0.00016847,2]
[351202750,1738414245665,-500.0,0.00016847,2]
[351202751,1738414245674,-500.0,0.00016847,2]
[351202752,1738414245683,-1410.17,0.00016847,2]
[351202753,1738414245693,-500.0,0.00016847,2]
[351202754,1738414245703,-500.0,0.00016847,2]
[351202755,1738414245712,-615.89,0.00016847,2]
[351202756,1738414245721,-500.0,0.00016847,2]
[351202757,1738414245731,-500.0,0.00016847,2]
[351202758,1738414245740,-500.0,0.00016847,2]
[351202759,1738414245749,-500.0,0.00016847,2]
[351202760,1738414245758,-585.14,0.00016847,2]
[351202761,1738414245767,-500.0,0.00016847,2]
[351202762,1738414245777,-500.0,0.00016847,2]
[351202763,1738414245786,-500.0,0.00016847,2]
[351202764,1738414245798,-500.0,0.00016847,2]
[351202765,1738414245808,-235.95295422,0.00016847,2]
[351202766,1738414245817,-500.0,0.00016847,2]
[351202767,1738414245826,-500.0,0.00016847,2]
[351202768,1738414245835,-500.0,0.00016847,2]
[351202769,1738414245845,-500.0,0.00016847,2]
[351202770,1738414245854,-654.83,0.00016847,2]
[351202771,1738414245863,-500.0,0.00016847,2]
[351202772,1738414245871,-500.0,0.00016847,2]
[351202773,1738414245881,-812.23,0.00016847,2]
[351202774,1738414245891,-500.0,0.00016847,2]
[351202775,1738414245900,-809.96,0.00016847,2]
[351202776,1738414245909,-500.0,0.00016847,2]
[351202778,1738414245919,-1770.87,0.00016847,2]
[351202780,1738414245928,-4040.62,0.00016847,2]
[351202782,1738414245938,-500.0,0.00016847,2]
[351202784,1738414245948,-500.0,0.00016847,2]
[351202786,1738414245957,-811.57,0.00016847,2]
[351202787,1738414245967,-1103.62,0.00016847,2]
[351202788,1738414245976,-500.0,0.00016847,2]
[351202789,1738414245985,-582.52,0.00016847,2]
[351202790,1738414245994,-1161.81,0.00016847,2]
[351202791,1738414246003,-500.0,0.00016847,2]
[351202792,1738414246012,-191.08218374,0.00016847,2]
[351202793,1738414246022,-469.07102359,0.00016879,5]
[351202794,1738414246031,-500.0,0.00016879,2]
[351202795,1738414246041,-500.0,0.00016879,2]
[351202796,1738414246050,-500.0,0.00016879,2]
[351202797,1738414246060,-18358.475114,0.00016879,2]
[351202798,1738414246071,-725.0065834,0.00016879,2]
[351202799,1738414246081,-4000.0,0.00016879,2]
[351202800,1738414246091,-6646.3781154,0.00016879,2]
[351202801,1738414246100,-1218.0,0.0001688,2]
[351202802,1738414246110,-608071.42490103,0.0001688,2]
[351202803,1738414246120,-76249.93742798,0.0001688,2]
[351202804,1738414246130,-1044.0,0.0001688,2]
[351202805,1738414246139,-500.0,0.00016899,2]
[351202806,1738414246148,-150.0,0.00016899,2]
[351202807,1738414246158,-3771.66,0.000169,2]
[351202808,1738414246168,-150.0,0.000169,2]
[351202809,1738414246179,-63360.68808683,0.000169,2]
[351202810,1738414246189,-38134.8814956,0.000169,2]
[351202811,1738414246199,-151.0,0.000169,2]
[351202812,1738414246209,-193.32675,0.000169,2]
[351202813,1738414246218,-193.32675,0.000169,2]
[351202814,1738414246227,-1346.19375502,0.000169,2]
[351202815,1738414246237,-366.0,0.000169,2]
[351202816,1738414246248,-897.0,0.000169,2]
[351202817,1738414246257,-971.2548453,0.00016904,2]
[351202818,1738414246267,-1044.0,0.00016907,2]
[351202819,1738414246276,-206.0,0.0001692,2]
[351202820,1738414246285,-500.0,0.00016922,2]
[351202821,1738414246295,-1000.0,0.00016922,2]
[351202822,1738414246304,-1346.19375495,0.00016934,2]
[351202823,1738414246313,-1044.0,0.00016935,2]
[351202824,1738414246323,-1271.0,0.0001696,2]
[351202825,1738414246332,-2022.0,0.0001696,2]
[351202826,1738414246341,-150.0,0.0001696,2]
[351202827,1738414246350,-724.803,0.0001696,2]
[351202828,1738414246359,-568.0,0.0001696,2]
[351202829,1738414246369,-1867.0,0.0001696,2]
[351202830,1738414246378,-2952.0,0.0001696,2]
[351202831,1738414246388,-782.0,0.0001696,2]
[351202832,1738414246397,-1263.0,0.0001696,2]
[351202833,1738414246407,-907.0,0.0001696,2]
[351202834,1738414246416,-538.0,0.0001696,2]
[351202835,1738414246425,-1326.12,0.0001696,2]
[351202836,1738414246434,-269.259,0.0001696,2]
[351202837,1738414246444,-1030.0,0.0001696,2]
[351202838,1738414246453,-3908.0,0.0001696,2]
[351202839,1738414246462,-151.455,0.0001696,2]
[351202840,1738414246472,-150.0,0.0001696,2]
[351202841,1738414246481,-801.053,0.0001696,2]
[351202842,1738414246491,-201.97,0.0001696,2]
[351202843,1738414246500,-1044.0,0.00016962,2]
[351202844,1738414246510,-396.91942081,0.00016965,2]
[351202845,1738414246519,-1346.19375495,0.00016969,2]
[351202846,1738414246529,-561.52200637,0.00016972,2]
[351202847,1738414246539,-232.59457,0.00016982,2]
[351202848,1738414246548,-151.0,0.00016982,2]
[351202849,1738414246558,-151.0,0.00016982,2]
[351202850,1738414246568,-158.306711,0.00016982,2]
[351202851,1738414246577,-158.306711,0.00016982,2]
[351202852,1738414246587,-196.67513677,0.00016982,2]
[351202853,1738414246596,-1252.48,0.00016982,2]
[351202854,1738414246605,-500.0,0.00016982,2]
[351202855,1738414246615,-500.0,0.00016982,2]
[351202856,1738414246624,-749.7,0.00016982,2]
[351202857,1738414246634,-164.581122,0.00016982,2]
[351202858,1738414246643,-578.93,0.00016982,2]
[351202859,1738414246652,-200.0,0.00016982,2]
[351202860,1738414246662,-656.51,0.00016982,2]
[351202861,1738414246671,-988.98,0.00016982,2]
[351202862,1738414246681,-168.207267,0.00016982,2]
[351202863,1738414246690,-500.0,0.00016982,2]
[351202864,1738414246699,-500.0,0.00016982,2]
[351202865,1738414246708,-1071.23,0.00016982,2]
[351202866,1738414246717,-826.27,0.00016982,2]
[351202867,1738414246726,-500.0,0.00016982,2]
[351202868,1738414246735,-500.0,0.00016982,2]
[351202869,1738414246744,-500.0,0.00016982,2]
[351202870,1738414246754,-500.0,0.00016982,2]
[351202871,1738414246763,-500.0,0.00016982,2]
[351202872,1738414246772,-1105.53,0.00016982,2]
[351202873,1738414246782,-985.42,0.00016982,2]
[351202874,1738414246791,-1286.53,0.00016982,2]
[351202875,1738414246805,-500.0,0.00016982,2]
[351202876,1738414246815,-769.76,0.00016982,2]
[351202877,1738414246825,-500.0,0.00016982,2]
[351202878,1738414246835,-679.59,0.00016982,2]
[351202879,1738414246846,-573.59879205,0.00016982,2]
[351202880,1738414246856,-500.0,0.00016982,2]
[351202881,1738414246865,-682.95,0.00016982,2]
[351202882,1738414246878,-1432.77,0.00016982,2]
[351202883,1738414246889,-559.85,0.00016982,2]
[351202884,1738414246898,-753.27,0.00016982,2]
[351202885,1738414246907,-735.42,0.00016982,2]
[351202886,1738414246916,-500.0,0.00016982,2]
[351202887,1738414246926,-1525.22,0.00016982,2]
[351202888,1738414246938,-780.63,0.00016982,2]
[351202889,1738414246947,-1246.71,0.00016982,2]
[351202890,1738414246956,-500.0,0.00016982,2]
[351202891,1738414246965,-665.37,0.00016982,2]
[351202892,1738414246974,-500.0,0.00016982,2]
[351202893,1738414246983,-500.0,0.00016982,2]
[351202894,1738414246992,-1229.03,0.00016982,2]
[351202895,1738414247002,-500.0,0.00016982,2]
[351202896,1738414247011,-459.49224157,0.00016982,2]
[351202897,1738414247020,-500.0,0.00016982,2]
[351202898,1738414247029,-829.47,0.00016982,2]
[351202899,1738414247038,-801.88,0.00016982,2]
[351202900,1738414247048,-555.28,0.00016982,2]
[351202901,1738414247058,-768.04,0.00016982,2]
[351202902,1738414247069,-1272.01,0.00016982,2]
[351202903,1738414247078,-745.04,0.00016982,2]
[351202904,1738414247088,-2016.66,0.00016982,2]
[351202905,1738414247098,-1450.36,0.00016982,2]
[351202906,1738414247107,-1402.9,0.00016982,2]
[351202907,1738414247117,-500.0,0.00016982,2]
[351202908,1738414247127,-514.89,0.00016982,2]
[351202909,1738414247137,-500.0,0.00016982,2]
[351202910,1738414247146,-500.0,0.00016982,2]
[351202911,1738414247155,-1333.7,0.00016982,2]
[351202912,1738414247165,-500.0,0.00016982,2]
[351202913,1738414247174,-2065.25,0.00016982,2]
[351202914,1738414247184,-500.0,0.00016982,2]
[351202915,1738414247194,-1091.38,0.00016982,2]
[351202916,1738414247203,-500.0,0.00016982,2]
[351202917,1738414247212,-755.19,0.00016982,2]
[351202918,1738414247221,-2286.44,0.00016982,2]
[351202919,1738414247231,-1034.34,0.00016982,2]
[351202920,1738414247239,-903.42,0.00016982,2]
[351202921,1738414247249,-500.0,0.00016982,2]
[351202922,1738414247258,-538.13,0.00016982,2]
[351202923,1738414247267,-1508.69,0.00016982,2]
[351202924,1738414247276,-1990.89,0.00016982,2]
[351202925,1738414247286,-500.0,0.00016982,2]
[351202926,1738414247295,-500.0,0.00016982,2]
[351202927,1738414247303,-1124.6,0.00016982,2]
[351202928,1738414247312,-500.0,0.00016982,2]
[351202929,1738414247323,-500.0,0.00016982,2]
[351202930,1738414247331,-696.38,0.00016982,2]
[351202931,1738414247341,-1232.82,0.00016982,2]
[351202932,1738414247350,-666.0,0.00016983,2]
[351202933,1738414247359,-666.0,0.00016983,2]
[351202934,1738414247368,-666.0,0.00016983,2]
[351202935,1738414247378,-151.0,0.00016983,2]
[351202936,1738414247387,-162.40313,0.00016983,2]
[351202937,1738414247396,-162.40313,0.00016983,2]
[351202938,1738414247405,-151.0,0.00016983,2]
[351202939,1738414247414,-151.0,0.00016983,2]
[351202940,1738414247423,-167.51475,0.00016983,2]
[351202941,1738414247432,-151.0,0.00016983,2]
[351202942,1738414247441,-151.0,0.00016983,2]
[351202943,1738414247451,-151.0,0.00016983,2]
[351202944,1738414247461,-787.66,0.00016983,2]
[351202945,1738414247470,-852.93,0.00016983,2]
[351202946,1738414247481,-1000.0,0.00016983,2]
[351202947,1738414247491,-756.56,0.00016983,2]
[351202948,1738414247500,-500.0,0.00016983,2]
[351202949,1738414247509,-1308.21,0.00016983,2]
[351202950,1738414247518,-859.14,0.00016983,2]